fUST/lending_fUST_20250613
["ID","MTS","AMOUNT","RATE_DAILY","PERIOD"]
[365662721,1749825033313,-647.57743481,0.00021627,2]
[365662723,1749825033324,-500.0,0.00021627,2]
[365662725,1749825033335,-406.08484223,0.00021627,2]
[365662727,1749825033345,-500.0,0.00021627,2]
[365662729,1749825033355,-500.0,0.00021627,2]
[365662731,1749825033366,-200.0,0.00021627,2]
[365662733,1749825033376,-500.0,0.00021627,2]
[365662735,1749825033387,-500.0,0.00021627,2]
[365662737,1749825033398,-500.0,0.00021627,2]
[365662740,1749825033408,-500.0,0.00021627,2]
[365662742,1749825033426,-500.0,0.00021627,2]
[365662744,1749825033437,-500.0,0.00021627,2]
[365662746,1749825033447,-500.0,0.00021627,2]
[365662748,1749825033459,-500.0,0.00021627,2]
[365662750,1749825033470,-500.0,0.00021627,2]
[365662752,1749825033480,-381.78542886,0.00021627,2]
[365662754,1749825033492,-500.0,0.00021627,2]
[365662756,1749825033502,-500.0,0.00021627,2]
[365662758,1749825033512,-500.0,0.00021627,2]
[365662759,1749825033523,-500.0,0.00021627,2]
[365662761,1749825033534,-500.0,0.00021627,2]
[365662764,1749825033547,-500.0,0.00021627,2]
[365662766,1749825033557,-500.0,0.00021627,2]
[365662768,1749825033568,-500.0,0.00021627,2]
[365662770,1749825033579,-500.0,0.00021627,2]
[365662772,1749825033590,-500.0,0.00021627,2]
[365662774,1749825033600,-500.0,0.00021627,2]
[365662776,1749825033611,-500.0,0.00021627,2]
[365662778,1749825033623,-500.0,0.00021627,2]
[365662780,1749825033634,-232.85,0.00021633,3]
[365662782,1749825033645,-460.0,0.00021643,2]
[365662784,1749825033655,-460.0,0.00021643,4]
[365662786,1749825033669,-1191.91,0.00021643,4]
[365662788,1749825033680,-887.29,0.00021643,4]
[365662790,1749825033691,-1348.94,0.00021643,4]
[365662792,1749825033701,-489.96,0.00021643,4]
[365662794,1749825033712,-460.0,0.00021643,4]
[365662796,1749825033722,-460.0,0.00021643,4]
[365662798,1749825033733,-460.0,0.00021643,4]
[365662801,1749825033744,-360.99785527,0.00021643,4]
[365662803,1749825033755,-539.79,0.00021643,4]
[365662804,1749825033765,-568.93,0.00021643,4]
[365662807,1749825033775,-460.0,0.00021643,4]
[365662809,1749825033786,-460.0,0.00021643,4]
[365662811,1749825033796,-460.0,0.00021643,4]
[365662812,1749825033807,-1209.34,0.00021643,4]
[365662815,1749825033819,-460.0,0.00021643,4]
[365662816,1749825033828,-460.0,0.00021643,4]
[365662818,1749825033838,-460.0,0.00021643,4]
[365662820,1749825033848,-460.0,0.00021643,4]
[365662823,1749825033859,-1930.78,0.00021643,4]
[365662825,1749825033870,-1083.2,0.00021643,4]
[365662827,1749825033880,-1387.28,0.00021643,4]
[365662829,1749825033891,-589.34,0.00021643,4]
[365662831,1749825033901,-1031.79,0.00021643,4]
[365662833,1749825033920,-460.0,0.00021643,4]
[365662835,1749825033930,-168.0,0.00021745,2]
[365662837,1749825033942,-1351.13846303,0.00021771,2]
[365662839,1749825033956,-151.66746684,0.00021856,2]
[365662841,1749825033967,-465.69,0.00021863,3]
[365662843,1749825033977,-1000.0,0.00021871,2]
[365662845,1749825033986,-1000.0,0.00021871,2]
[365662847,1749825033996,-1000.0,0.00021871,2]
[365662849,1749825034007,-1000.0,0.00021871,2]
[365662851,1749825034017,-1000.0,0.00021871,2]
[365662853,1749825034027,-1000.0,0.00021871,2]
[365662855,1749825034044,-1000.0,0.00021871,2]
[365662857,1749825034054,-1000.0,0.00021871,2]
[365662859,1749825034064,-1000.0,0.00021871,2]
[365662861,1749825034074,-285.4213699,0.00021871,2]
[365662876,1749825034209,-500.0,0.00021871,2]
[365662878,1749825034219,-1000.0,0.00021871,2]
[365662880,1749825034228,-1000.0,0.00021871,2]
[365662882,1749825034239,-1000.0,0.00021871,2]
[365662884,1749825034249,-1000.0,0.00021871,2]
[365662886,1749825034259,-1000.0,0.00021871,2]
[365662888,1749825034270,-1000.0,0.00021871,2]
[365662890,1749825034279,-1000.0,0.00021871,2]
[365662892,1749825034289,-1000.0,0.00021871,2]
[365662894,1749825034299,-1000.0,0.00021871,2]
[365662896,1749825034309,-1000.0,0.00021871,2]
[365662898,1749825034319,-718.54733058,0.00021871,2]
[365662900,1749825034329,-169.1,0.00021871,2]
[365662902,1749825034339,-500.0,0.00021873,2]
[365662904,1749825034349,-269.53884081,0.00021873,2]
[365662906,1749825034359,-500.0,0.00021873,2]
[365662908,1749825034369,-500.0,0.00021873,2]
[365662910,1749825034379,-500.0,0.00021873,2]
[365662912,1749825034389,-500.0,0.00021873,2]
[365662914,1749825034399,-500.0,0.00021873,2]
[365662916,1749825034408,-230.84516889,0.00021877,2]
[365662918,1749825034421,-463.83728784,0.000219,6]
[365662920,1749825034431,-698.57,0.00021907,3]
[365662922,1749825034440,-1581.83,0.00021916,4]
[365662924,1749825034450,-521.84,0.00021916,4]
[365662926,1749825034460,-500.0,0.00021917,2]
[365662928,1749825034470,-500.0,0.00021917,2]
[365662930,1749825034481,-500.0,0.00021917,2]
[365662932,1749825034490,-500.0,0.00021917,2]
[365662934,1749825034499,-500.0,0.00021917,2]
[365662936,1749825034509,-460.0,0.00021917,2]
[365662938,1749825034519,-460.0,0.00021917,4]
[365662940,1749825034534,-1191.91,0.00021917,4]
[365662942,1749825034544,-887.29,0.00021917,4]
[365662944,1749825034554,-1348.94,0.00021917,4]
[365662946,1749825034564,-460.0,0.00021917,4]
[365662948,1749825034575,-460.0,0.00021917,4]
[365662950,1749825034585,-460.0,0.00021917,4]
[365662952,1749825034595,-539.79,0.00021917,4]
[365662954,1749825034605,-568.93,0.00021917,4]
[365662956,1749825034618,-460.0,0.00021917,4]
[365662958,1749825034628,-190.23,0.00021917,4]
[365662960,1749825034639,-460.0,0.00021917,4]
[365662962,1749825034649,-1209.34,0.00021917,4]
[365662964,1749825034659,-460.0,0.00021917,4]
[365662966,1749825034674,-460.0,0.00021917,4]
[365662968,1749825034685,-460.0,0.00021917,4]
[365662970,1749825034695,-460.0,0.00021917,4]
[365662972,1749825034705,-1930.78,0.00021917,4]
[365662975,1749825034716,-1083.2,0.00021917,4]
[365662976,1749825034725,-1387.28,0.00021917,4]
[365662978,1749825034735,-589.34,0.00021917,4]
[365662980,1749825034744,-1031.79,0.00021917,4]
[365662981,1749825034754,-383.94,0.00021917,4]
[365662982,1749825034764,-500.0,0.00021959,2]
[365662983,1749825034774,-421.12771399,0.00021959,2]
[365662984,1749825034784,-500.0,0.00021959,2]
[365662985,1749825034793,-500.0,0.00021959,2]
[365662986,1749825034802,-500.0,0.00021959,2]
[365662987,1749825034812,-415.03844314,0.00021959,2]
[365662988,1749825034821,-500.0,0.00021959,2]
[365662989,1749825034831,-503.79834672,0.00021959,2]
[365662990,1749825034840,-500.0,0.00021959,2]
[365662991,1749825034849,-509.62566211,0.00021972,2]
[365662992,1749825034859,-500.0,0.00021972,2]
[365662993,1749825034868,-500.0,0.00021986,2]
[365662994,1749825034878,-418.28863315,0.00021986,2]
[365662995,1749825034887,-500.0,0.0002199,2]
[365662996,1749825034896,-168.17602009,0.00021993,2]
[365662997,1749825034905,-317.0,0.00021995,2]
[365662998,1749825034917,-169.0,0.00022,2]
[365662999,1749825034926,-463.83728769,0.00022003,6]
[365663000,1749825034936,-1592.0,0.0002201,2]
[365663001,1749825034946,-500.0,0.00022018,2]
[365663002,1749825034955,-500.0,0.00022018,2]
[365663003,1749825034965,-500.0,0.00022018,2]
[365663005,1749825034975,-500.0,0.00022033,2]
[365663007,1749825034984,-1351.138463,0.00022053,2]
[365663009,1749825034993,-500.0,0.00022056,2]
[365663011,1749825035003,-500.0,0.00022063,2]
[365663013,1749825035012,-350.24060396,0.000221,2]
[365663015,1749825035021,-216.01084162,0.000221,2]
[365663017,1749825035030,-279407.32415875,0.00022106,2]
[365663020,1749825035045,-13596.93675736,0.00022106,2]
[365663303,1749825037875,-430586.95096389,0.00022106,2]
[365663305,1749825037885,-463.83728769,0.00022107,6]
[365663307,1749825037894,-229.78555783,0.00022117,2]
[365663309,1749825037904,-835.28007164,0.00022117,2]
[365663311,1749825037914,-160.0,0.00022117,2]
[365663313,1749825037924,-424.32678023,0.00022117,2]
[365663315,1749825037933,-160.0,0.00022122,2]
[365663317,1749825037943,-160.0,0.00022122,2]
[365663319,1749825037952,-844.94977992,0.00022122,2]
[365663321,1749825037961,-160.0,0.00022122,2]
[365663323,1749825037971,-160.0,0.00022122,2]
[365663325,1749825037981,-168.0,0.00022168,2]
[365663327,1749825037990,-614.97389559,0.00022173,2]
[365663329,1749825037999,-1152.94,0.0002218,2]
[365663331,1749825038008,-1581.83,0.0002219,4]
[365663333,1749825038018,-521.84,0.0002219,4]
[365663335,1749825038027,-460.0,0.00022191,2]
[365663337,1749825038037,-460.0,0.00022191,4]
[365663339,1749825038046,-1191.91,0.00022191,4]
[365663341,1749825038055,-887.29,0.00022191,4]
[365663343,1749825038064,-1348.94,0.00022191,4]
[365663345,1749825038074,-460.0,0.00022191,4]
[365663347,1749825038083,-460.0,0.00022191,4]
[365663349,1749825038093,-539.79,0.00022191,4]
[365663352,1749825038102,-568.93,0.00022191,4]
[365663354,1749825038112,-460.0,0.00022191,4]
[365663356,1749825038121,-460.0,0.00022191,4]
[365663358,1749825038131,-1209.34,0.00022191,4]
[365663360,1749825038140,-460.0,0.00022191,4]
[365663362,1749825038150,-460.0,0.00022191,4]
[365663363,1749825038159,-460.0,0.00022191,4]
[365663365,1749825038169,-460.0,0.00022191,4]
[365663367,1749825038179,-1930.78,0.00022191,4]
[365663369,1749825038188,-1083.2,0.00022191,4]
[365663372,1749825038197,-1387.28,0.00022191,4]
[365663374,1749825038207,-589.34,0.00022191,4]
[365663376,1749825038216,-1031.79,0.00022191,4]
[365663378,1749825038226,-463.83728769,0.0002221,6]
[365663380,1749825038235,-397.0,0.00022214,2]
[365663382,1749825038244,-500.0,0.00022218,2]
[365663384,1749825038253,-503.23811144,0.00022218,2]
[365663386,1749825038262,-770.64,0.00022251,3]
[365663388,1749825038271,-1592.0,0.00022282,2]
[365663390,1749825038280,-463.83728769,0.00022314,7]
[365663392,1749825038290,-1351.138463,0.00022336,2]
[365663394,1749825038299,-770.64,0.00022351,5]
[365663396,1749825038308,-207.4,0.00022378,2]
[365663398,1749825038318,-5000.0,0.00022378,2]
[365663400,1749825038327,-151.0,0.00022378,2]
[365663402,1749825038336,-1688.0,0.00022378,2]
[365663404,1749825038346,-500.0,0.00022378,2]
[365663406,1749825038355,-500.0,0.00022378,2]
[365663408,1749825038365,-355.86796555,0.00022378,2]
[365663410,1749825038374,-500.0,0.00022378,2]
[365663412,1749825038384,-500.0,0.00022378,2]
[365663414,1749825038395,-500.0,0.00022378,2]
[365663416,1749825038404,-500.0,0.00022378,2]
[365663418,1749825038415,-500.0,0.00022378,2]
[365663420,1749825038425,-500.0,0.00022378,2]
[365663422,1749825038434,-292.0040564,0.00022378,2]
[365663424,1749825038444,-500.0,0.00022378,2]
[365663426,1749825038453,-500.0,0.00022378,2]
[365663428,1749825038463,-500.0,0.00022378,2]
[365663430,1749825038473,-500.0,0.00022378,2]
[365663432,1749825038482,-500.0,0.00022378,2]
[365663434,1749825038492,-500.0,0.00022378,2]
[365663436,1749825038501,-500.0,0.00022378,2]
[365663438,1749825038511,-500.0,0.00022378,2]
[365663440,1749825038521,-500.0,0.00022378,2]
[365663442,1749825038535,-500.0,0.00022378,2]
[365663444,1749825038544,-500.0,0.00022378,2]
[365663446,1749825038554,-151.0,0.00022378,2]
[365663448,1749825038563,-151.0,0.00022378,2]
[365663450,1749825038573,-151.0,0.00022378,2]
[365663452,1749825038583,-216.63087839,0.00022378,2]
[365663454,1749825038592,-151.0,0.00022378,2]
[365663456,1749825038601,-151.0,0.00022378,2]
[365663458,1749825038612,-270.98328894,0.00022378,2]
[365663460,1749825038622,-463.83728769,0.00022417,7]
[365663462,1749825038632,-500.0,0.00022419,3]
[365663464,1749825038642,-180.40256111,0.00022421,2]
[365663466,1749825038652,-503.87350031,0.00022421,2]
[365663468,1749825038662,-1000.0,0.00022421,2]
[365663470,1749825038673,-1000.0,0.00022421,2]
[365663472,1749825038682,-1750.456,0.00022433,2]
[365663474,1749825038691,-479.0,0.00022442,2]
[365663476,1749825038701,-770.64,0.00022451,2]
[365663478,1749825038711,-1581.83,0.00022464,4]
[365663480,1749825038721,-521.84,0.00022464,4]
[365663482,1749825038730,-500.0,0.00022465,2]
[365663484,1749825038740,-460.0,0.00022465,2]
[365663487,1749825038749,-460.0,0.00022465,4]
[365663489,1749825038759,-1191.91,0.00022465,4]
[365663491,1749825038769,-887.29,0.00022465,4]
[365663493,1749825038779,-1348.94,0.00022465,4]
[365663495,1749825038789,-460.0,0.00022465,4]
[365663496,1749825038799,-460.0,0.00022465,4]
[365663499,1749825038809,-539.79,0.00022465,4]
[365663501,1749825038818,-568.93,0.00022465,4]
[365663503,1749825038828,-460.0,0.00022465,4]
[365663505,1749825038837,-460.0,0.00022465,4]
[365663507,1749825038848,-1209.34,0.00022465,4]
[365663509,1749825038858,-460.0,0.00022465,4]
[365663511,1749825038867,-460.0,0.00022465,4]
[365663516,1749825038976,-460.0,0.00022465,4]
[365663517,1749825038987,-460.0,0.00022465,4]
[365663518,1749825038997,-1930.78,0.00022465,4]
[365663519,1749825039007,-1083.2,0.00022465,4]
[365663520,1749825039016,-1387.28,0.00022465,4]
[365663521,1749825039026,-589.34,0.00022465,4]
[365663522,1749825039035,-1031.79,0.00022465,4]
[365663523,1749825039045,-500.0,0.00022466,2]
[365663524,1749825039055,-500.0,0.00022466,2]
[365663525,1749825039065,-500.0,0.00022466,2]
[365663526,1749825039075,-327.91571206,0.00022466,2]
[365663527,1749825039085,-1592.0,0.0002248,2]
[365663528,1749825039095,-609.48434413,0.00022488,2]
[365663529,1749825039105,-979.90183394,0.00022507,2]
[365663530,1749825039115,-506.45617297,0.00022507,2]
[365663531,1749825039124,-503.20737064,0.00022507,2]
[365663532,1749825039133,-1039.29664791,0.00022507,2]
[365663533,1749825039143,-1000.0,0.0002252,2]
[365663534,1749825039153,-463.83728769,0.00022521,7]
[365663535,1749825039162,-505.47568824,0.00022534,2]
[365663536,1749825039173,-1037.978401,0.00022538,2]
[365663537,1749825039183,-770.64,0.00022551,3]
[365663538,1749825039192,-1000.0,0.00022566,2]
[365663540,1749825039202,-1000.0,0.00022581,2]
[365663542,1749825039212,-500.0,0.00022604,2]
[365663543,1749825039222,-1000.0,0.0002261,2]
[365663545,1749825039231,-1351.138463,0.00022618,2]
[365663547,1749825039241,-463.83728769,0.00022624,7]
[365663549,1749825039250,-770.64,0.00022651,6]
[365663551,1749825039260,-166.50369972,0.00022712,2]
[365663553,1749825039270,-168.17602009,0.00022717,2]
[365663555,1749825039279,-463.83728769,0.00022728,7]
[365663557,1749825039290,-1581.83,0.00022738,4]
[365663559,1749825039299,-521.84,0.00022738,4]
[365663561,1749825039309,-460.0,0.00022739,2]
[365663563,1749825039318,-460.0,0.00022739,4]
[365663565,1749825039328,-1191.91,0.00022739,4]
[365663567,1749825039338,-887.29,0.00022739,4]
[365663569,1749825039348,-1348.94,0.00022739,4]
[365663571,1749825039358,-460.0,0.00022739,4]
[365663573,1749825039367,-460.0,0.00022739,4]
[365663575,1749825039377,-539.79,0.00022739,4]
[365663578,1749825039387,-568.93,0.00022739,4]
[365663581,1749825039396,-460.0,0.00022739,4]
[365663584,1749825039406,-460.0,0.00022739,4]
[365663588,1749825039417,-1209.34,0.00022739,4]
[365663592,1749825039427,-460.0,0.00022739,4]
[365663595,1749825039437,-186.6468637,0.00022739,4]
[365663599,1749825039448,-460.0,0.00022739,4]
[365663603,1749825039458,-460.0,0.00022739,4]
[365663606,1749825039468,-1930.78,0.00022739,4]
[365663609,1749825039478,-1083.2,0.00022739,4]
[365663611,1749825039489,-1387.28,0.00022739,4]
[365663614,1749825039499,-589.34,0.00022739,4]
[365663617,1749825039509,-1031.79,0.00022739,4]
[365663620,1749825039518,-770.64,0.00022751,3]
[365663623,1749825039528,-1009.04374065,0.00022766,2]
[365663625,1749825039539,-1592.0,0.00022818,2]
[365663643,1749825039761,-463.83728769,0.00022831,8]
[365663645,1749825039771,-166.50369972,0.00022849,2]
[365663648,1749825039780,-770.64,0.00022851,4]
[365663651,1749825039790,-326.65594834,0.00022875,2]
[365663654,1749825039800,-1351.138463,0.000229,2]
[365663657,1749825039809,-5000.0,0.00022926,2]
[365663660,1749825039819,-178.52723075,0.00022926,2]
[365663663,1749825039829,-463.83728769,0.00022934,8]
[365663665,1749825039839,-420.0,0.00022943,2]
[365663668,1749825039848,-420.0,0.00022943,2]
[365663671,1749825039858,-153.0,0.00022945,2]
[365663673,1749825039868,-153.0,0.00022945,2]
[365663677,1749825039879,-153.0,0.00022945,2]
[365663679,1749825039889,-153.0,0.00022945,2]
[365663681,1749825039898,-770.64,0.00022951,2]
[365663682,1749825039907,-1500.0,0.00022968,2]
[365663684,1749825039918,-500.0,0.00022973,2]
[365663686,1749825039928,-500.0,0.00022973,2]
[365663688,1749825039937,-500.0,0.00022973,2]
[365663690,1749825039946,-500.0,0.00022973,2]
[365663692,1749825039956,-171.0,0.00023,7]
[365663694,1749825039965,-35255.07644509,0.00023,2]
[365663696,1749825039979,-97550.20069729,0.00023,2]
[365663698,1749825039990,-248.71259222,0.00023,2]
[365663700,1749825040000,-1127.42139629,0.00023,2]
[365663702,1749825040009,-500.0,0.00023,2]
[365663704,1749825040019,-44175.12758854,0.00023,2]
[365663706,1749825040028,-500.0,0.00023,4]
[365663708,1749825040037,-500.0,0.00023,4]
[365663710,1749825040047,-10043.38789823,0.00023,2]
[365663712,1749825040056,-356948.7550305,0.00023,20]
[365663714,1749825040065,-500.0,0.00023,4]
[365663716,1749825040075,-1000.0,0.00023,4]
[365663718,1749825040084,-1000.0,0.00023,4]
[365663720,1749825040093,-1000.0,0.00023,4]
[365663722,1749825040102,-1001.41206443,0.00023,4]
[365663725,1749825040112,-465.7,0.00023003,3]
[365663727,1749825040122,-1581.83,0.00023012,4]
[365663729,1749825040131,-521.84,0.00023012,4]
[365663731,1749825040141,-500.0,0.00023013,2]
[365663733,1749825040151,-460.0,0.00023013,2]
[365663735,1749825040160,-460.0,0.00023013,4]
[365663737,1749825040172,-1191.91,0.00023013,4]
[365663739,1749825040182,-887.29,0.00023013,4]
[365663741,1749825040192,-1348.94,0.00023013,4]
[365663743,1749825040201,-584.3561705,0.00023013,4]
[365663745,1749825040211,-460.0,0.00023013,4]
[365663747,1749825040220,-539.79,0.00023013,4]
[365663749,1749825040230,-568.93,0.00023013,4]
[365663751,1749825040240,-460.0,0.00023013,4]
[365663753,1749825040249,-460.0,0.00023013,4]
[365663755,1749825040259,-1209.34,0.00023013,4]
[365663757,1749825040269,-460.0,0.00023013,4]
[365663759,1749825040279,-460.0,0.00023013,4]
[365663761,1749825040288,-460.0,0.00023013,4]
[365663763,1749825040298,-1930.78,0.00023013,4]
[365663765,1749825040308,-1083.2,0.00023013,4]
[365663766,1749825040317,-1387.28,0.00023013,4]
[365663768,1749825040326,-589.34,0.00023013,4]
[365663770,1749825040336,-1031.79,0.00023013,4]
[365663772,1749825040345,-166.50369972,0.00023014,2]
[365663775,1749825040355,-169.0,0.00023014,7]
[365663776,1749825040365,-463.83728769,0.00023038,8]
[365663779,1749825040375,-770.64,0.00023051,6]
[365663781,1749825040385,-174.11427626,0.00023068,2]
[365663783,1749825040395,-500.0,0.00023129,2]
[365663785,1749825040404,-1592.0,0.00023134,2]
[365663787,1749825040414,-463.83728769,0.00023141,8]
[365663789,1749825040425,-166.50369972,0.00023151,2]
[365663791,1749825040435,-770.64,0.00023151,7]
[365663793,1749825040444,-500.0,0.00023156,2]
[365663794,1749825040454,-521.66822977,0.00023158,2]
[365663797,1749825040464,-405.0,0.00023184,2]
[365663799,1749825040475,-963.0,0.00023184,2]
[365663800,1749825040486,-931.38,0.00023233,3]
[365663801,1749825040496,-169.1,0.00023241,2]
[365663802,1749825040506,-463.83728769,0.00023245,8]
[365663803,1749825040516,-770.64,0.00023251,3]
[365663804,1749825040526,-1581.83,0.00023286,4]
[365663806,1749825040537,-521.84,0.00023286,4]
[365663808,1749825040547,-460.0,0.00023287,2]
[365663810,1749825040556,-460.0,0.00023287,4]
[365663812,1749825040565,-1191.91,0.00023287,4]
[365663814,1749825040575,-887.29,0.00023287,4]
[365663816,1749825040585,-1348.94,0.00023287,4]
[365663818,1749825040594,-460.0,0.00023287,4]
[365663820,1749825040604,-539.79,0.00023287,4]
[365663822,1749825040616,-568.93,0.00023287,4]
[365663824,1749825040627,-460.0,0.00023287,4]
[365663826,1749825040636,-460.0,0.00023287,4]
[365663828,1749825040646,-1209.34,0.00023287,4]
[365663830,1749825040655,-460.0,0.00023287,4]
[365663832,1749825040666,-460.0,0.00023287,4]
[365663834,1749825040676,-460.0,0.00023287,4]
[365663836,1749825040686,-1930.78,0.00023287,4]
[365663838,1749825040695,-1083.2,0.00023287,4]
[365663840,1749825040704,-1387.28,0.00023287,4]
[365663842,1749825040714,-589.34,0.00023287,4]
[365663844,1749825040724,-1031.79,0.00023287,4]
[365663846,1749825040734,-166.50369972,0.00023315,2]
[365663848,1749825040744,-463.83728769,0.00023348,9]
[365663850,1749825040753,-80050.16395243,0.0002335,2]
[365663852,1749825040763,-770.64,0.00023351,7]
[365663854,1749825040773,-168.17602009,0.0002344,2]
[365663856,1749825040783,-770.64,0.00023451,3]
[365663859,1749825040793,-463.83728769,0.00023452,9]
[365663860,1749825040802,-166.50369972,0.00023452,2]
[365663862,1749825040812,-5000.0,0.00023474,2]
[365663864,1749825040821,-407.17119344,0.000235,2]
[365663866,1749825040830,-1990.074276,0.0002351,3]
[365663868,1749825040840,-2000.0,0.00023516,2]
[365663870,1749825040849,-1000.0,0.00023521,2]
[365663872,1749825040859,-770.64,0.00023551,5]
[365663874,1749825040869,-747.9574665,0.00023552,2]
[365663876,1749825040878,-158.898503,0.00023553,7]
[365663878,1749825040888,-151.0,0.00023553,7]
[365663880,1749825040898,-151.0,0.00023553,7]
[365663882,1749825040907,-463.83728769,0.00023555,9]
[365663884,1749825040919,-1581.83,0.0002356,4]
[365663886,1749825040928,-521.84,0.0002356,4]
[365663888,1749825040937,-460.0,0.00023561,2]
[365663890,1749825040946,-460.0,0.00023561,4]
[365663892,1749825040956,-1191.91,0.00023561,4]
[365663894,1749825040966,-887.29,0.00023561,4]
[365663896,1749825040976,-1348.94,0.00023561,4]
[365663899,1749825040986,-460.0,0.00023561,4]
[365663902,1749825040995,-539.79,0.00023561,4]
[365663905,1749825041005,-568.93,0.00023561,4]
[365663908,1749825041015,-460.0,0.00023561,4]
[365663909,1749825041025,-460.0,0.00023561,4]
[365663911,1749825041035,-1209.34,0.00023561,4]
[365663913,1749825041049,-460.0,0.00023561,4]
[365663915,1749825041059,-460.0,0.00023561,4]
[365663917,1749825041069,-460.0,0.00023561,4]
[365663919,1749825041079,-1930.78,0.00023561,4]
[365663921,1749825041089,-1083.2,0.00023561,4]
[365663923,1749825041099,-1387.28,0.00023561,4]
[365663925,1749825041108,-589.34,0.00023561,4]
[365663927,1749825041118,-1031.79,0.00023561,4]
[365663929,1749825041128,-424.32678023,0.000236,3]
[365663932,1749825041137,-160.0,0.000236,3]
[365663934,1749825041147,-160.0,0.000236,3]
[365663937,1749825041157,-166.50369972,0.00023616,2]
[365663940,1749825041168,-747.9574665,0.00023621,2]
[365663943,1749825041178,-770.64,0.00023651,3]
[365663946,1749825041188,-463.83728769,0.00023659,9]
[365663949,1749825041197,-747.9574665,0.00023675,2]
[365663952,1749825041207,-747.9574665,0.00023681,2]
[365663955,1749825041217,-151.0,0.00023687,2]
[365663957,1749825041227,-844.33103472,0.000237,3]
[365663959,1749825041236,-213.24139183,0.000237,3]
[365663961,1749825041245,-800.0,0.00023702,2]
[365663963,1749825041255,-215.0738,0.00023747,2]
[365663966,1749825041265,-770.64,0.00023751,4]
[365663968,1749825041274,-166.50369972,0.00023753,2]
[365663971,1749825041284,-463.83728769,0.00023762,9]
[365663992,1749825041381,-250.0,0.00023772,2]
[365663996,1749825041393,-500.0,0.00023773,2]
[365663999,1749825041403,-500.0,0.00023773,2]
[365664002,1749825041412,-504.43395862,0.00023773,2]
[365664004,1749825041424,-500.0,0.00023773,2]
[365664007,1749825041433,-500.0,0.00023773,2]
[365664010,1749825041442,-160.57289627,0.00023773,2]
[365664012,1749825041452,-500.0,0.00023773,2]
[365664015,1749825041461,-600.0,0.00023773,2]
[365664018,1749825041470,-500.0,0.00023773,2]
[365664021,1749825041480,-506.87102913,0.00023773,2]
[365664023,1749825041489,-502.32906871,0.00023773,2]
[365664026,1749825041498,-500.0,0.00023773,2]
[365664029,1749825041508,-500.0,0.00023773,2]
[365664033,1749825041518,-500.0,0.00023773,2]
[365664036,1749825041528,-513.98861648,0.00023773,2]
[365664039,1749825041540,-500.0,0.00023773,2]
[365664042,1749825041550,-500.0,0.00023773,2]
[365664044,1749825041561,-548.82423603,0.00023773,2]
[365664047,1749825041570,-500.0,0.00023773,2]
[365664051,1749825041579,-200.0,0.00023779,2]
[365664054,1749825041590,-373852.98206568,0.0002378,5]
[365664266,1749825042849,-1004.825,0.00021626,2]
[365664276,1749825042932,-14995.175,0.00021626,2]
[365664278,1749825042942,-11145.97481103,0.00021626,2]
[365664280,1749825042952,-6997.06036606,0.00022007,2]
[365664282,1749825042963,-2185.63615654,0.00022007,2]
[365664564,1749825046021,-695.28,0.00021095,4]